fUST/lending_fUST_20240819
["ID","MTS","AMOUNT","RATE_DAILY","PERIOD"]
[335276138,1724064648926,-1022.040147,0.00016438,2]
[335276139,1724064648936,-151.0,0.00016438,2]
[335276140,1724064648947,-500.0,0.00016438,2]
[335276141,1724064648957,-500.0,0.00016438,2]
[335276142,1724064648966,-2266.85,0.00016438,2]
[335276143,1724064648976,-500.0,0.00016438,2]
[335276144,1724064648985,-1022.040147,0.00016438,2]
[335276145,1724064648995,-506.22716781,0.00016438,2]
[335276146,1724064649004,-500.0,0.00016438,2]
[335276147,1724064649013,-500.0,0.00016438,2]
[335276148,1724064649022,-500.0,0.00016438,2]
[335276149,1724064649032,-151.0,0.00016438,2]
[335276150,1724064649041,-500.0,0.00016438,2]
[335276151,1724064649051,-1215.95,0.00016438,2]
[335276152,1724064649060,-500.0,0.00016438,2]
[335276153,1724064649070,-488.76739691,0.00016438,2]
[335276154,1724064649080,-500.0,0.00016438,2]
[335276155,1724064649090,-734.72,0.00016438,2]
[335276156,1724064649100,-500.0,0.00016438,2]
[335276157,1724064649110,-500.0,0.00016438,2]
[335276158,1724064649119,-501.00578619,0.00016438,2]
[335276159,1724064649128,-729.24,0.00016438,2]
[335276160,1724064649138,-2145.28,0.00016438,2]
[335276161,1724064649147,-151.0,0.00016438,2]
[335276162,1724064649157,-516.60999901,0.00016438,2]
[335276163,1724064649167,-500.0,0.00016438,2]
[335276164,1724064649176,-500.0,0.00016438,2]
[335276165,1724064649186,-500.0,0.00016438,2]
[335276166,1724064649196,-1474.66,0.00016438,2]
[335276167,1724064649205,-450.96455398,0.00016438,2]
[335276168,1724064649215,-500.0,0.00016438,2]
[335276169,1724064649224,-525.46331692,0.00016438,2]
[335276170,1724064649234,-612.11,0.00016438,2]
[335276171,1724064649244,-500.0,0.00016438,2]
[335276172,1724064649254,-2313.4,0.00016438,2]
[335276173,1724064649263,-1177.26,0.00016438,2]
[335276174,1724064649273,-500.0,0.00016438,2]
[335276175,1724064649283,-500.0,0.00016438,2]
[335276176,1724064649293,-1601.505462,0.00016438,2]
[335276177,1724064649303,-573.54,0.00016438,2]
[335276178,1724064649312,-500.0,0.00016438,2]
[335276179,1724064649322,-500.0,0.00016438,2]
[335276180,1724064649331,-1601.505462,0.00016438,2]
[335276181,1724064649340,-500.0,0.00016438,2]
[335276182,1724064649351,-560.41,0.00016438,2]
[335276183,1724064649360,-2216.78,0.00016438,2]
[335276184,1724064649369,-500.0,0.00016438,2]
[335276185,1724064649379,-500.0,0.00016438,2]
[335276186,1724064649389,-1514.7,0.00016438,2]
[335276187,1724064649399,-500.0,0.00016438,2]
[335276188,1724064649408,-500.0,0.00016438,2]
[335276189,1724064649418,-835.68,0.00016438,2]
[335276190,1724064649427,-500.0,0.00016438,2]
[335276191,1724064649436,-500.0,0.00016438,2]
[335276192,1724064649445,-500.0,0.00016438,2]
[335276193,1724064649455,-3105.81,0.00016438,2]
[335276194,1724064649464,-504.30774141,0.00016438,2]
[335276195,1724064649473,-151.0,0.00016438,2]
[335276196,1724064649482,-500.0,0.00016438,2]
[335276197,1724064649491,-504.6364979,0.00016438,2]
[335276198,1724064649500,-500.0,0.00016438,2]
[335276199,1724064649510,-151.0,0.00016438,2]
[335276200,1724064649518,-595.88,0.00016438,2]
[335276201,1724064649528,-505.45132813,0.00016438,2]
[335276202,1724064649537,-500.0,0.00016438,2]
[335276203,1724064649546,-317.402066,0.00016438,2]
[335276204,1724064649555,-500.0,0.00016438,2]
[335276205,1724064649564,-1084.05,0.00016438,2]
[335276206,1724064649576,-500.0,0.00016438,2]
[335276207,1724064649585,-500.0,0.00016438,2]
[335276208,1724064649595,-317.402066,0.00016438,2]
[335276209,1724064649604,-3685.64,0.00016438,2]
[335276210,1724064649613,-500.0,0.00016438,2]
[335276211,1724064649622,-2913.53,0.00016438,2]
[335276212,1724064649631,-597.54,0.00016438,2]
[335276213,1724064649641,-500.0,0.00016438,2]
[335276214,1724064649650,-1064.67,0.00016438,2]
[335276215,1724064649659,-528.13880111,0.00016438,2]
[335276216,1724064649669,-5669.38,0.00016438,2]
[335276217,1724064649678,-5669.38,0.00016438,2]
[335276218,1724064649688,-5669.38,0.00016438,2]
[335276219,1724064649698,-5669.38,0.00016438,2]
[335276220,1724064649707,-5669.38,0.00016438,2]
[335276221,1724064649717,-5669.38,0.00016438,2]
[335276222,1724064649727,-500.0,0.00016438,2]
[335276223,1724064649738,-1144.09,0.00016438,2]
[335276224,1724064649751,-5669.38,0.00016438,2]
[335276225,1724064649761,-5669.38,0.00016438,2]
[335276226,1724064649770,-5669.38,0.00016438,2]
[335276227,1724064649780,-5669.38,0.00016438,2]
[335276228,1724064649790,-5669.38,0.00016438,2]
[335276229,1724064649799,-500.0,0.00016438,2]
[335276230,1724064649808,-500.0,0.00016438,2]
[335276231,1724064649818,-5669.38,0.00016438,2]
[335276232,1724064649829,-5669.38,0.00016438,2]
[335276233,1724064649838,-5669.38,0.00016438,2]
[335276234,1724064649847,-5669.38,0.00016438,2]
[335276235,1724064649857,-5669.38,0.00016438,2]
[335276236,1724064649866,-5669.38,0.00016438,2]
[335276237,1724064649876,-5669.38,0.00016438,2]
[335276238,1724064649886,-5669.38,0.00016438,2]
[335276239,1724064649895,-5669.38,0.00016438,2]
[335276240,1724064649905,-500.0,0.00016438,2]
[335276241,1724064649915,-5669.38,0.00016438,2]
[335276242,1724064649924,-5669.38,0.00016438,2]
[335276243,1724064649934,-1364.06,0.00016438,2]
[335276244,1724064649943,-5669.38,0.00016438,2]
[335276245,1724064649953,-500.0,0.00016438,2]
[335276246,1724064649962,-5669.57413487,0.00016438,2]
[335276247,1724064649971,-565.87374963,0.00016438,2]
[335276248,1724064649982,-500.0,0.00016438,2]
[335276249,1724064649991,-500.0,0.00016438,2]
[335276250,1724064650000,-668.34,0.00016438,2]
[335276251,1724064650010,-500.0,0.00016438,2]
[335276252,1724064650020,-2425.62,0.00016438,2]
[335276253,1724064650031,-3200.0,0.00016488,2]
[335276254,1724064650042,-277.65598799,0.000165,2]
[335276255,1724064650052,-150.112233,0.000165,2]
[335276256,1724064650062,-155.0,0.0001652,2]
[335276257,1724064650073,-600.0,0.00016545,2]
[335276258,1724064650082,-151.0,0.00016592,2]
[335276259,1724064650092,-214.886552,0.00016592,2]
[335276260,1724064650103,-150.112233,0.000166,2]
[335276261,1724064650113,-150.112233,0.000166,2]
[335276262,1724064650122,-160.0,0.00016631,5]
[335276263,1724064650132,-160.0,0.00016631,5]
[335276264,1724064650142,-2000.0,0.00016677,2]
[335276265,1724064650152,-2000.0,0.00016686,2]
[335276266,1724064650161,-2000.0,0.00016694,2]
[335276267,1724064650171,-150.112233,0.000167,2]
[335276268,1724064650181,-150.112233,0.000167,2]
[335276269,1724064650191,-150.112237,0.000167,2]
[335276270,1724064650201,-150.112233,0.000167,2]
[335276271,1724064650211,-150.112233,0.000167,2]
[335276272,1724064650223,-150.112233,0.000167,2]
[335276273,1724064650234,-150.112233,0.000167,2]
[335276274,1724064650246,-150.112237,0.000167,2]
[335276275,1724064650340,-151.0,0.00016701,2]
[335276276,1724064650353,-152.140415,0.00016701,2]
[335276277,1724064650363,-151.216934,0.00016702,2]
[335276278,1724064650373,-2000.0,0.00016703,2]
[335276279,1724064650382,-500.0,0.00016712,2]
[335276280,1724064650391,-500.0,0.00016712,2]
[335276281,1724064650400,-500.0,0.00016712,2]
[335276282,1724064650409,-500.0,0.00016712,2]
[335276283,1724064650418,-635.16,0.00016712,2]
[335276284,1724064650428,-500.0,0.00016712,2]
[335276285,1724064650438,-502.72306225,0.00016712,2]
[335276286,1724064650448,-500.0,0.00016712,2]
[335276287,1724064650458,-500.0,0.00016712,2]
[335276288,1724064650469,-591.86,0.00016712,2]
[335276289,1724064650479,-500.0,0.00016712,2]
[335276290,1724064650488,-500.0,0.00016712,2]
[335276291,1724064650500,-512.21823494,0.00016712,2]
[335276292,1724064650510,-500.0,0.00016712,2]
[335276293,1724064650520,-500.0,0.00016712,2]
[335276294,1724064650530,-328.23265324,0.00016712,2]
[335276295,1724064650541,-500.0,0.00016712,2]
[335276296,1724064650551,-530.16823019,0.00016712,2]
[335276297,1724064650562,-500.0,0.00016712,2]
[335276298,1724064650574,-500.0,0.00016712,2]
[335276299,1724064650583,-566.51,0.00016712,2]
[335276300,1724064650593,-500.0,0.00016712,2]
[335276301,1724064650604,-500.0,0.00016712,2]
[335276302,1724064650615,-500.0,0.00016712,2]
[335276303,1724064650626,-514.45064666,0.00016712,2]
[335276304,1724064650637,-500.0,0.00016712,2]
[335276305,1724064650648,-500.0,0.00016712,2]
[335276306,1724064650659,-500.0,0.00016712,2]
[335276307,1724064650670,-500.0,0.00016712,2]
[335276308,1724064650680,-500.0,0.00016712,2]
[335276309,1724064650689,-500.0,0.00016712,2]
[335276310,1724064650699,-504.92187964,0.00016712,2]
[335276311,1724064650708,-500.0,0.00016712,2]
[335276312,1724064650717,-500.0,0.00016712,2]
[335276313,1724064650727,-480.31782484,0.00016712,2]
[335276314,1724064650737,-500.0,0.00016712,2]
[335276315,1724064650751,-500.0,0.00016712,2]
[335276316,1724064650760,-500.0,0.00016712,2]
[335276317,1724064650770,-500.0,0.00016712,2]
[335276318,1724064650780,-604.56,0.00016712,2]
[335276319,1724064650789,-500.0,0.00016712,2]
[335276320,1724064650800,-526.36639125,0.00016712,2]
[335276321,1724064650812,-502.86770542,0.00016712,2]
[335276322,1724064650825,-500.0,0.00016712,2]
[335276323,1724064650836,-500.0,0.00016712,2]
[335276324,1724064650846,-1036.27,0.00016712,2]
[335276325,1724064650856,-500.0,0.00016712,2]
[335276326,1724064650866,-876.01,0.00016712,2]
[335276327,1724064650876,-500.0,0.00016712,2]
[335276328,1724064650885,-920.14,0.00016712,2]
[335276329,1724064650895,-500.0,0.00016712,2]
[335276330,1724064650904,-924.92,0.00016712,2]
[335276331,1724064650914,-500.0,0.00016712,2]
[335276332,1724064650924,-500.0,0.00016712,2]
[335276333,1724064650933,-500.0,0.00016712,2]
[335276334,1724064650942,-500.0,0.00016712,2]
[335276335,1724064650952,-500.0,0.00016712,2]
[335276336,1724064650961,-884.77,0.00016712,2]
[335276337,1724064650971,-556.13677801,0.00016712,2]
[335276338,1724064650981,-500.0,0.00016712,2]
[335276339,1724064650993,-1525.26,0.00016712,2]
[335276340,1724064651002,-199.72908973,0.00016712,2]
[335276341,1724064651012,-500.0,0.00016712,2]
[335276342,1724064651022,-1240.07,0.00016712,2]
[335276343,1724064651031,-500.0,0.00016712,2]
[335276344,1724064651042,-500.0,0.00016712,2]
[335276345,1724064651051,-500.0,0.00016712,2]
[335276346,1724064651062,-531.9,0.00016712,2]
[335276347,1724064651074,-500.0,0.00016712,2]
[335276348,1724064651090,-500.0,0.00016712,2]
[335276349,1724064651099,-500.0,0.00016712,2]
[335276350,1724064651108,-670.44,0.00016712,2]
[335276351,1724064651118,-2085.01,0.00016712,2]
[335276352,1724064651128,-500.0,0.00016712,2]
[335276353,1724064651138,-151.0,0.00016712,2]
[335276354,1724064651149,-151.0,0.00016712,2]
[335276355,1724064651161,-500.0,0.00016712,2]
[335276356,1724064651172,-500.0,0.00016712,2]
[335276357,1724064651182,-972.73,0.00016712,2]
[335276358,1724064651193,-608.01,0.00016712,2]
[335276359,1724064651202,-627.13,0.00016712,2]
[335276360,1724064651214,-549.6,0.00016712,2]
[335276361,1724064651225,-500.0,0.00016712,2]
[335276362,1724064651234,-571.47,0.00016712,2]
[335276363,1724064651246,-500.0,0.00016712,2]
[335276364,1724064651256,-500.0,0.00016712,2]
[335276365,1724064651266,-509.54,0.00016712,2]
[335276366,1724064651277,-500.0,0.00016712,2]
[335276367,1724064651286,-500.0,0.00016712,2]
[335276368,1724064651297,-1192.27,0.00016712,2]
[335276369,1724064651307,-500.0,0.00016712,2]
[335276370,1724064651317,-500.0,0.00016712,2]
[335276371,1724064651328,-500.0,0.00016712,2]
[335276372,1724064651339,-868.49,0.00016712,2]
[335276373,1724064651348,-500.0,0.00016712,2]
[335276374,1724064651359,-833.76,0.00016712,2]
[335276375,1724064651370,-500.0,0.00016712,2]
[335276376,1724064651381,-500.0,0.00016712,2]
[335276377,1724064651391,-541.44,0.00016712,2]
[335276378,1724064651401,-406.37260052,0.00016712,2]
[335276379,1724064651410,-680.14,0.00016712,2]
[335276380,1724064651419,-677.35,0.00016712,2]
[335276381,1724064651429,-500.0,0.00016712,2]
[335276382,1724064651439,-1037.09,0.00016712,2]
[335276383,1724064651450,-764.95,0.00016712,2]
[335276384,1724064651460,-500.0,0.00016712,2]
[335276385,1724064651470,-500.0,0.00016712,2]
[335276386,1724064651480,-3205.11,0.00016712,2]
[335276387,1724064651492,-629.33,0.00016712,2]
[335276388,1724064651502,-500.0,0.00016712,2]
[335276389,1724064651511,-500.0,0.00016712,2]
[335276390,1724064651520,-500.0,0.00016712,2]
[335276391,1724064651529,-618.15,0.00016712,2]
[335276392,1724064651539,-500.0,0.00016712,2]
[335276393,1724064651548,-788.89,0.00016712,2]
[335276394,1724064651557,-501.1,0.00016712,2]
[335276395,1724064651569,-500.0,0.00016712,2]
[335276396,1724064651578,-563.54713185,0.00016712,2]
[335276397,1724064651587,-500.0,0.00016712,2]
[335276398,1724064651597,-868.42,0.00016712,2]
[335276399,1724064651607,-500.0,0.00016712,2]
[335276400,1724064651618,-945.19,0.00016712,2]
[335276401,1724064651630,-500.0,0.00016712,2]
[335276402,1724064651639,-924.86,0.00016712,2]
[335276403,1724064651648,-500.0,0.00016712,2]
[335276404,1724064651657,-1050.73,0.00016712,2]
[335276405,1724064651667,-571.61,0.00016712,2]
[335276406,1724064651676,-673.9,0.00016712,2]
[335276407,1724064651685,-819.39,0.00016712,2]
[335276408,1724064651695,-500.0,0.00016712,2]
[335276409,1724064651704,-170.15661377,0.00016712,2]
[335276410,1724064651714,-513.12,0.00016712,2]
[335276411,1724064651724,-500.0,0.00016712,2]
[335276412,1724064651818,-500.0,0.00016712,2]
[335276413,1724064651830,-500.0,0.00016712,2]
[335276414,1724064651839,-1257.31,0.00016712,2]
[335276415,1724064651850,-651.1,0.00016712,2]
[335276416,1724064651860,-500.0,0.00016712,2]
[335276417,1724064651871,-800.57,0.00016712,2]
[335276418,1724064651882,-500.0,0.00016712,2]
[335276419,1724064651893,-500.0,0.00016712,2]
[335276420,1724064651902,-643.17,0.00016712,2]
[335276421,1724064651913,-500.0,0.00016712,2]
[335276422,1724064651922,-500.0,0.00016712,2]
[335276423,1724064651931,-500.0,0.00016712,2]
[335276424,1724064651940,-891.67,0.00016712,2]
[335276425,1724064651950,-500.0,0.00016712,2]
[335276426,1724064651959,-500.0,0.00016712,2]
[335276427,1724064651968,-734.44,0.00016712,2]
[335276428,1724064651977,-500.0,0.00016712,2]
[335276429,1724064651988,-500.0,0.00016712,2]
[335276430,1724064651998,-439.15520646,0.00016712,2]
[335276431,1724064652007,-596.48,0.00016712,2]
[335276432,1724064652016,-500.0,0.00016712,2]
[335276433,1724064652026,-991.23,0.00016712,2]
[335276434,1724064652035,-500.0,0.00016712,2]
[335276435,1724064652044,-975.86,0.00016712,2]
[335276436,1724064652054,-500.0,0.00016712,2]
[335276437,1724064652063,-500.0,0.00016712,2]
[335276438,1724064652075,-500.0,0.00016712,2]
[335276439,1724064652089,-245.20445656,0.00016712,2]
[335276440,1724064652098,-1381.03,0.00016712,2]
[335276441,1724064652108,-500.0,0.00016712,2]
[335276442,1724064652117,-502.85,0.00016712,2]
[335276443,1724064652129,-500.0,0.00016712,2]
[335276444,1724064652139,-500.0,0.00016712,2]
[335276445,1724064652148,-500.0,0.00016712,2]
[335276446,1724064652157,-500.0,0.00016712,2]
[335276447,1724064652166,-530.34,0.00016712,2]
[335276448,1724064652175,-704.69,0.00016712,2]
[335276449,1724064652184,-883.26,0.00016712,2]
[335276450,1724064652193,-652.07,0.00016712,2]
[335276451,1724064652203,-456.79596843,0.00016712,2]
[335276452,1724064652212,-613.05,0.00016712,2]
[335276453,1724064652221,-500.0,0.00016712,2]
[335276454,1724064652230,-500.0,0.00016712,2]
[335276455,1724064652239,-500.0,0.00016712,2]
[335276456,1724064652248,-644.74,0.00016712,2]
[335276457,1724064652258,-500.0,0.00016712,2]
[335276458,1724064652267,-500.0,0.00016712,2]
[335276459,1724064652276,-500.0,0.00016712,2]
[335276460,1724064652285,-500.0,0.00016712,2]
[335276461,1724064652294,-500.0,0.00016712,2]
[335276462,1724064652304,-500.0,0.00016712,2]
[335276463,1724064652313,-500.0,0.00016712,2]
[335276464,1724064652322,-500.0,0.00016712,2]
[335276465,1724064652332,-500.0,0.00016712,2]
[335276466,1724064652341,-627.32,0.00016712,2]
[335276467,1724064652351,-768.77,0.00016712,2]
[335276468,1724064652360,-304.0995594,0.00016712,2]
[335276469,1724064652369,-500.0,0.00016712,2]
[335276470,1724064652379,-1030.7,0.00016712,2]
[335276471,1724064652389,-751.5,0.00016712,2]
[335276472,1724064652398,-500.0,0.00016712,2]
[335276473,1724064652408,-669.42,0.00016712,2]
[335276474,1724064652417,-563.42,0.00016712,2]
[335276475,1724064652430,-507.4126662,0.00016712,2]
[335276476,1724064652453,-500.0,0.00016712,2]
[335276477,1724064652471,-500.0,0.00016712,2]
[335276478,1724064652491,-500.0,0.00016712,2]
[335276479,1724064652511,-563.05,0.00016712,2]
[335276480,1724064652529,-500.0,0.00016712,2]
[335276481,1724064652548,-544.32760179,0.00016712,2]
[335276482,1724064652564,-500.0,0.00016712,2]
[335276483,1724064652585,-500.0,0.00016712,2]
[335276484,1724064652603,-500.0,0.00016712,2]
[335276485,1724064652624,-500.0,0.00016712,2]
[335276486,1724064652638,-500.0,0.00016712,2]
[335276487,1724064652654,-1159.42,0.00016712,2]
[335276488,1724064652669,-1058.32,0.00016712,2]
[335276489,1724064652687,-500.0,0.00016712,2]
[335276490,1724064652701,-263.841394,0.00016712,2]
[335276491,1724064652715,-263.841394,0.00016712,2]
[335276492,1724064652730,-500.0,0.00016712,2]
[335276493,1724064652747,-206.07549867,0.00016712,2]
[335276494,1724064652761,-263.841394,0.00016712,2]
[335276495,1724064652774,-263.841394,0.00016712,2]
[335276496,1724064652790,-835.22,0.00016712,2]
[335276497,1724064652804,-1036.0,0.00016712,2]
[335276498,1724064652822,-500.0,0.00016712,2]
[335276499,1724064652836,-500.0,0.00016712,2]
[335276500,1724064652850,-500.0,0.00016712,2]
[335276501,1724064652866,-500.0,0.00016712,2]
[335276502,1724064652880,-1629.15,0.00016712,2]
[335276503,1724064652894,-874.96,0.00016712,2]
[335276504,1724064652909,-679.46,0.00016712,2]
[335276505,1724064652924,-714.72,0.00016712,2]
[335276506,1724064652937,-650.75,0.00016712,2]
[335276507,1724064652952,-2000.0,0.00016712,2]
[335276508,1724064652968,-2792.23,0.00016712,2]
[335276509,1724064652983,-500.0,0.00016712,2]
[335276510,1724064652998,-526.32985777,0.00016712,2]
[335276511,1724064653011,-500.0,0.00016712,2]
[335276512,1724064653026,-1304.87,0.00016712,2]
[335276513,1724064653042,-685.38,0.00016712,2]
[335276514,1724064653057,-999.6,0.00016712,2]
[335276515,1724064653072,-500.0,0.00016712,2]
[335276516,1724064653087,-285.73550189,0.00016712,2]
[335276517,1724064653102,-500.0,0.00016712,2]
[335276518,1724064653117,-547.37,0.00016712,2]
[335276519,1724064653132,-500.0,0.00016712,2]
[335276520,1724064653146,-625.23,0.00016712,2]
[335276521,1724064653160,-500.0,0.00016712,2]
[335276522,1724064653177,-500.0,0.00016712,2]
[335276523,1724064653192,-500.0,0.00016712,2]
[335276524,1724064653207,-500.0,0.00016712,2]
[335276525,1724064653225,-500.0,0.00016712,2]
[335276526,1724064653240,-1241.89,0.00016712,2]
[335276527,1724064653256,-507.77970041,0.00016712,2]
[335276528,1724064653272,-545.07,0.00016712,2]
[335276529,1724064653288,-500.0,0.00016712,2]
[335276530,1724064653302,-500.0,0.00016712,2]
[335276531,1724064653318,-500.0,0.00016712,2]
[335276532,1724064653331,-500.0,0.00016712,2]
[335276533,1724064653341,-200.0,0.00016712,2]
[335276534,1724064653353,-500.0,0.00016712,2]
[335276535,1724064653364,-1810.25,0.00016712,2]
[335276536,1724064653375,-2005.0,0.00016712,10]
[335276537,1724064653387,-1703.86,0.00016712,2]
[335276538,1724064653561,-548.12,0.00016712,2]
[335276539,1724064653584,-1465.02,0.00016712,2]
[335276540,1724064653595,-500.0,0.00016712,2]
[335276541,1724064653607,-500.0,0.00016712,2]
[335276542,1724064653618,-500.0,0.00016712,2]
[335276543,1724064653629,-644.029277,0.00016712,2]
[335276544,1724064653641,-644.029277,0.00016712,2]
[335276545,1724064653652,-505.16764078,0.00016712,2]
[335276546,1724064653663,-644.029277,0.00016712,2]
[335276547,1724064653672,-644.029277,0.00016712,2]
[335276548,1724064653683,-500.0,0.00016712,2]
[335276549,1724064653694,-810.71,0.00016712,2]
[335276550,1724064653706,-2823.37,0.00016712,2]
[335276551,1724064653717,-500.0,0.00016712,2]
[335276552,1724064653728,-500.0,0.00016712,2]
[335276553,1724064653742,-347.37762043,0.00016712,2]
[335276554,1724064653756,-500.0,0.00016712,2]
[335276555,1724064653768,-500.0,0.00016712,2]
[335276556,1724064653778,-636.92050402,0.00016712,2]
[335276557,1724064653788,-913.2,0.00016712,2]
[335276558,1724064653799,-500.0,0.00016712,2]
[335276559,1724064653809,-500.0,0.00016712,2]
[335276560,1724064653821,-1950.34,0.00016712,2]
[335276561,1724064653832,-500.0,0.00016712,2]
[335276562,1724064653843,-1677.1,0.00016712,2]
[335276563,1724064653852,-766.64,0.00016712,2]
[335276564,1724064653863,-611.4,0.00016712,2]
[335276565,1724064653874,-502.40577743,0.00016712,2]
[335276566,1724064653885,-500.0,0.00016712,2]
[335276567,1724064653894,-628.62,0.00016712,2]
[335276568,1724064653903,-531.03,0.00016712,2]
[335276569,1724064653913,-500.0,0.00016712,2]
[335276570,1724064653922,-500.0,0.00016712,2]
[335276571,1724064653931,-1530.73,0.00016712,2]
[335276572,1724064653942,-754.52,0.00016712,2]
[335276573,1724064653951,-575.88,0.00016712,2]
[335276574,1724064653961,-500.0,0.00016712,2]
[335276575,1724064653970,-500.0,0.00016712,2]
[335276576,1724064653980,-955.98,0.00016712,2]
[335276577,1724064653990,-500.0,0.00016712,2]
[335276578,1724064653999,-500.0,0.00016712,2]
[335276579,1724064654008,-500.0,0.00016712,2]
[335276580,1724064654018,-500.0,0.00016712,2]
[335276581,1724064654028,-151.0,0.00016712,2]
[335276582,1724064654037,-574.44,0.00016712,2]
[335276583,1724064654048,-151.0,0.00016712,2]
[335276584,1724064654057,-731.1,0.00016712,2]
[335276585,1724064654067,-500.0,0.00016712,2]
[335276586,1724064654078,-506.71813683,0.00016712,2]
[335276587,1724064654087,-6498.62,0.00016712,2]
[335276588,1724064654097,-500.0,0.00016712,2]
[335276589,1724064654106,-500.0,0.00016712,2]
[335276590,1724064654116,-500.0,0.00016712,2]
[335276591,1724064654125,-500.0,0.00016712,2]
[335276592,1724064654136,-500.0,0.00016712,2]
[335276593,1724064654147,-6412.2,0.00016712,2]
[335276594,1724064654159,-500.0,0.00016712,2]
[335276595,1724064654170,-500.0,0.00016712,2]
[335276596,1724064654181,-500.0,0.00016712,2]
[335276597,1724064654193,-1017.23,0.00016712,2]
[335276598,1724064654203,-500.0,0.00016712,2]
[335276599,1724064654213,-500.0,0.00016712,2]
[335276600,1724064654223,-1833.35,0.00016712,2]
[335276601,1724064654233,-500.0,0.00016712,2]
[335276602,1724064654243,-551.2,0.00016712,2]
[335276603,1724064654254,-500.0,0.00016712,2]
[335276604,1724064654267,-500.0,0.00016712,2]
[335276605,1724064654277,-500.0,0.00016712,2]
[335276606,1724064654287,-500.0,0.00016712,2]
[335276607,1724064654297,-866.32,0.00016712,2]
[335276608,1724064654308,-306.07396677,0.00016712,2]
[335276609,1724064654318,-1076.73,0.00016712,2]
[335276610,1724064654329,-1738.28,0.00016712,2]
[335276611,1724064654338,-552.95,0.00016712,2]
[335276612,1724064654348,-503.93195172,0.00016712,2]
[335276613,1724064654357,-500.0,0.00016712,2]
[335276614,1724064654366,-591.99,0.00016712,2]
[335276615,1724064654378,-500.0,0.00016712,2]
[335276616,1724064654389,-556.23,0.00016712,2]
[335276617,1724064654398,-500.0,0.00016712,2]
[335276618,1724064654407,-1070.93,0.00016712,2]
[335276619,1724064654417,-500.0,0.00016712,2]
[335276620,1724064654427,-500.0,0.00016712,2]
[335276621,1724064654436,-500.0,0.00016712,2]
[335276622,1724064654446,-1404.09,0.00016712,2]
[335276623,1724064654455,-504.45971245,0.00016712,2]
[335276624,1724064654465,-527.24,0.00016712,2]
[335276625,1724064654474,-500.0,0.00016712,2]
[335276626,1724064654484,-549.76,0.00016712,2]
[335276627,1724064654493,-4166.87,0.00016712,2]
[335276628,1724064654503,-500.0,0.00016712,2]
[335276629,1724064654512,-515.1891322,0.00016712,2]
[335276630,1724064654521,-500.0,0.00016712,2]
[335276631,1724064654531,-952.17,0.00016712,2]
[335276632,1724064654540,-523.47,0.00016712,2]
[335276633,1724064654549,-501.69853805,0.00016712,2]
[335276634,1724064654559,-500.0,0.00016712,2]
[335276635,1724064654568,-19615.05,0.00016712,2]
[335276636,1724064654578,-500.0,0.00016712,2]
[335276637,1724064654587,-500.0,0.00016712,2]